fUST/lending_fUST_20241015
["ID","MTS","AMOUNT","RATE_DAILY","PERIOD"]
[340262017,1728940247881,-2309.81949234,0.0004802,120]
[340262018,1728940247891,-150.112233,0.000483,14]
[340262019,1728940247900,-167.42334699,0.00048342,28]
[340262020,1728940247910,-687.60180776,0.00048388,7]
[340262021,1728940247920,-30660.75339647,0.00048398,63]
[340262022,1728940247930,-19575.16686652,0.00048398,84]
[340262023,1728940247940,-14914.37714762,0.00048398,8]
[340262024,1728940247950,-2761.38,0.00048436,60]
[340262025,1728940247960,-1848.39,0.00048436,21]
[340262026,1728940247969,-337.48,0.00048437,7]
[340262027,1728940247979,-512.16,0.00048437,30]
[340262028,1728940247988,-500.0,0.00048437,7]
[340262029,1728940247997,-711.16,0.00048437,120]
[340262030,1728940248008,-550.0,0.00048564,7]
[340262031,1728940248019,-200.0,0.00048601,120]
[340262032,1728940248028,-500.0,0.0004875,10]
[340262033,1728940248038,-1375.20361552,0.0004876,7]
[340262034,1728940248047,-110326.31914401,0.0004877,2]
[340262035,1728940248121,-6673.68085599,0.0004877,2]
[340262036,1728940248133,-687.60180776,0.0004879,7]
[340262037,1728940248143,-32968.07437148,0.000488,120]
[340262038,1728940248159,-30722.44022711,0.000488,120]
[340262039,1728940248171,-1229.231496,0.000488,120]
[340262066,1728941316968,2994.83308809,0.00014,4]
[340262067,1728941316996,12004.10131642,0.00014,4]
[340262068,1728941321233,3703.79677056,0.0001,2]
[340262094,1728941438252,-1332.001332,0.00038,7]
[340262095,1728941438263,-484.2025,0.00038356,7]
[340262096,1728941438273,-229.375102,0.00038356,2]
[340262097,1728941438283,-200.0,0.00039999,60]
[340262098,1728941438292,-150.0,0.0004,2]
[340262099,1728941438301,-1453.09236218,0.0004028,11]
[340262100,1728941438310,-158.0,0.0004034,120]
[340262101,1728941438319,-400.0,0.0004038,30]
[340262102,1728941438329,-400.0,0.0004038,5]
[340262103,1728941438338,-1052.34185473,0.00040381,28]
[340262104,1728941438348,-437.0,0.00040481,2]
[340262105,1728941438357,-151.0,0.00040481,14]
[340262106,1728941438366,-54364.27386047,0.00040481,2]
[340262107,1728941438375,-1500.0,0.00040481,2]
[340262108,1728941438388,-2508.11411142,0.00040481,2]
[340262109,1728941438396,-515.16711283,0.00040481,2]
[340262110,1728941438405,-291.54725059,0.00040481,2]
[340262111,1728941438415,-4158.81398807,0.00040481,2]
[340262112,1728941438424,-1051.8924576,0.00040481,2]
[340262113,1728941438434,-10000.0,0.00040481,7]
[340262114,1728941438443,-163.60821859,0.00040481,2]
[340262115,1728941438452,-4129.22101409,0.00040481,2]
[340262116,1728941438462,-1170.84660119,0.00040481,2]
[340262117,1728941438470,-154.60716769,0.00040481,2]
[340262118,1728941438480,-516.35921458,0.00040481,2]
[340262119,1728941438489,-242.90071154,0.00040481,5]
[340262120,1728941438498,-1519.99538698,0.00040481,2]
[340262121,1728941438508,-1223.26965738,0.00040481,2]
[340262122,1728941438517,-437.97410949,0.00040481,2]
[340262123,1728941438526,-223.71765349,0.00040481,2]
[340262124,1728941438536,-1020.46569962,0.00040481,2]
[340262125,1728941438545,-497.02687069,0.00040481,2]
[340262126,1728941438554,-1881.10200046,0.00040481,2]
[340262127,1728941438563,-394.84668403,0.00040481,2]
[340262128,1728941438573,-559.0868747,0.00040481,2]
[340262129,1728941438582,-158.40253822,0.00040602,60]
[340262130,1728941438591,-150.0,0.00040684,2]
[340262131,1728941438600,-968.405,0.00041095,8]
[340262132,1728941438610,-1000.0,0.00041436,2]
[340262133,1728941438619,-1185.6063037,0.00041445,2]
[340262134,1728941438629,-500.0,0.00041526,60]
[340262135,1728941438638,-500.0,0.00041526,60]
[340262136,1728941438648,-1035.52,0.00041526,60]
[340262137,1728941438657,-693.15,0.00041526,21]
[340262138,1728941438667,-791.50836555,0.00041526,6]
[340262139,1728941438676,-26268.7210527,0.00041526,6]
[340262140,1728941438685,-1009.08010194,0.00041535,3]
[340262141,1728941438696,-1017.65361285,0.00041536,6]
[340262142,1728941438705,-33774.0699249,0.00041536,6]
[340262143,1728941438714,-200.0,0.00041545,7]
[340262144,1728941438723,-500.0,0.00041545,30]
[340262145,1728941438733,-500.0,0.00041545,7]
[340262146,1728941438742,-439652.35053301,0.00041546,90]
[340262147,1728941438752,-500.0,0.00041573,10]
[340262148,1728941438762,-500.0,0.00041573,10]
[340262149,1728941438771,-500.0,0.00041573,10]
[340262150,1728941438781,-500.0,0.00041573,10]
[340262151,1728941438791,-3752.6744361,0.0004159,6]
[340262152,1728941438800,-4057.65,0.000416,30]
[340262153,1728941438809,-24063.94,0.000416,30]
[340262154,1728941438818,-9322.86,0.000416,30]
[340262155,1728941438827,-263.97,0.000416,30]
[340262156,1728941438836,-500.0,0.00042128,60]
[340262157,1728941438846,-500.0,0.00042128,60]
[340262158,1728941438855,-1035.52,0.00042128,60]
[340262159,1728941438865,-693.15,0.00042128,21]
[340262160,1728941438875,-200.0,0.00042148,7]
[340262161,1728941438886,-500.0,0.00042148,30]
[340262162,1728941438897,-500.0,0.00042148,7]
[340262163,1728941438909,-1453.09236218,0.0004256,11]
[340262164,1728941439029,-500.0,0.00042731,60]
[340262165,1728941439039,-500.0,0.00042731,60]
[340262166,1728941439049,-1035.52,0.00042731,60]
[340262167,1728941439061,-693.15,0.00042731,21]
[340262168,1728941439071,-200.0,0.00042751,7]
[340262169,1728941439082,-500.0,0.00042751,30]
[340262170,1728941439093,-500.0,0.00042751,7]
[340262171,1728941439103,-1000.0,0.00042942,10]
[340262172,1728941439112,-1000.0,0.00042942,10]
[340262173,1728941439121,-1000.0,0.00042942,10]
[340262174,1728941439130,-3752.6744361,0.00043324,6]
[340262175,1728941439139,-500.0,0.00043334,60]
[340262176,1728941439150,-500.0,0.00043334,60]
[340262177,1728941439159,-1035.52,0.00043334,60]
[340262178,1728941439168,-693.15,0.00043334,21]
[340262179,1728941439178,-200.0,0.00043353,7]
[340262180,1728941439187,-500.0,0.00043353,30]
[340262181,1728941439196,-360.61004307,0.00043353,7]
[340262182,1728941439205,-154.34185749,0.00043756,49]
[340262183,1728941439214,-1052.34185468,0.00043804,28]
[340262184,1728941439223,-1452.6075,0.00043835,9]
[340262185,1728941439232,-500.0,0.00043936,60]
[340262186,1728941439241,-500.0,0.00043936,60]
[340262187,1728941439250,-1035.52,0.00043936,60]
[340262188,1728941439261,-693.15,0.00043936,21]
[340262189,1728941439272,-200.0,0.00043956,7]
[340262190,1728941439282,-500.0,0.00043956,30]
[340262191,1728941439292,-3824.0760534,0.000442,120]
[340262192,1728941439303,-500.0,0.00044539,60]
[340262193,1728941439313,-500.0,0.00044539,60]
[340262194,1728941439324,-1035.52,0.00044539,60]
[340262195,1728941439336,-693.15,0.00044539,21]
[340262196,1728941439346,-200.0,0.00044559,7]
[340262197,1728941439355,-500.0,0.00044559,30]
[340262198,1728941439366,-1089.28710979,0.0004484,15]
[340262199,1728941439375,-1113.56076387,0.00045,5]
[340262200,1728941439385,-500.0,0.00045142,60]
[340262201,1728941439397,-500.0,0.00045142,60]
[340262202,1728941439407,-1035.52,0.00045142,60]
[340262203,1728941439417,-693.15,0.00045142,21]
[340262204,1728941439428,-200.0,0.00045162,7]
[340262205,1728941439438,-500.0,0.00045162,30]
[340262206,1728941439447,-500.0,0.00045371,10]
[340262207,1728941439457,-3824.07605336,0.00045725,120]
[340262208,1728941439466,-540.88277618,0.00045745,60]
[340262209,1728941439475,-500.0,0.00045745,60]
[340262210,1728941439486,-1035.52,0.00045745,60]
[340262211,1728941439495,-693.15,0.00045745,21]
[340262212,1728941439505,-200.0,0.00045764,7]
[340262213,1728941439516,-500.0,0.00045764,30]
[340262214,1728941439525,-500.0,0.00045973,7]
[340262215,1728941439535,-150.0,0.00045973,10]
[340262216,1728941439544,-150.0,0.00045973,7]
[340262217,1728941439553,-226.1452473,0.0004599,6]
[340262218,1728941439562,-7505.3488722,0.0004599,6]
[340262219,1728941439571,-15330.37669823,0.00046,63]
[340262220,1728941439580,-9787.58343326,0.00046,84]
[340262221,1728941439589,-168254.24004716,0.00046,10]
[340262222,1728941439598,-289476.05541497,0.00046,60]
[340262229,1728941440222,-11023.21577336,0.00046,60]
[340262239,1728941443274,-3500.0,0.00046,60]
[340262240,1728941443286,-9909.79569722,0.00046,60]
[340262291,1728941446147,-347.0,0.00046,60]
[340262293,1728941446161,-1957.74991629,0.00046,60]
[340262294,1728941446172,-985.85,0.00046,60]
[340262295,1728941446183,-1185.6063037,0.00046,60]
[340262298,1728941446205,-641539.26193032,0.00046,60]
[340262300,1728941446215,-500.0,0.00046347,60]
[340262301,1728941446225,-1035.52,0.00046347,60]
[340262302,1728941446236,-693.15,0.00046347,21]
[340262303,1728941446246,-200.0,0.00046367,7]
[340262304,1728941446258,-609.47297404,0.00046367,30]
[340262305,1728941446269,-250.0,0.00046521,7]
[340262306,1728941446279,-1936.81,0.00046575,10]
[340262307,1728941446289,-500.0,0.0004695,120]
[340262308,1728941446301,-1035.52,0.0004695,60]
[340262309,1728941446311,-693.15,0.0004695,21]
[340262310,1728941446322,-200.0,0.0004697,7]
[340262311,1728941446332,-150.112233,0.00047,10]
[340262312,1728941446343,-158.0,0.00047,90]
[340262313,1728941446361,-350.0,0.00047068,7]
[340262314,1728941446374,-1052.34185468,0.00047226,28]
[340262315,1728941446383,-1000.0,0.00047342,7]
[340262316,1728941446393,-500.0,0.00047553,120]
[340262317,1728941446403,-1035.52,0.00047553,60]
[340262318,1728941446418,-693.15,0.00047553,21]
[340262319,1728941446429,-200.0,0.00047573,7]
[340262320,1728941446440,-150.112233,0.000476,12]
[340262321,1728941446452,-450.0,0.00047616,7]
[340262322,1728941446463,-165.0,0.00048,14]
[340262323,1728941446474,-500.0,0.00048156,120]
[340262324,1728941446485,-1035.52,0.00048156,60]
[340262325,1728941446495,-693.15,0.00048156,21]
[340262326,1728941446508,-550.0,0.00048164,7]
[340262327,1728941446521,-200.0,0.00048175,7]
[340262328,1728941446534,-85433.77684211,0.00048312,2]
[340262416,1728942638421,-186.77834013,0.000349,2]
[340262417,1728942638432,-150.0,0.00035,3]
[340262418,1728942638442,-295.60371112,0.00038356,7]
[340262423,1728942640860,-138.16128888,0.00038356,7]
[340262472,1728942646364,-150.0,0.000402,2]
[340262473,1728942646375,-867.53,0.00041095,8]
[340262474,1728942646386,-800.824,0.00041416,2]
[340262475,1728942646399,-1301.295,0.00043835,9]
[340262476,1728942646410,-2294.44563204,0.000442,120]
[340262477,1728942646420,-154.34185749,0.00044338,52]
[340262478,1728942646430,-2294.44563201,0.00045721,120]
[340262479,1728942646442,-1735.06,0.00046575,10]
[340262480,1728942646453,-158.0,0.00047,90]
[340262481,1728942646463,-229.375102,0.00047397,120]
[340262482,1728942646473,-209.7060463,0.00047695,30]
[340262483,1728942646487,-1500.0,0.00047699,120]
[340262484,1728942646497,-150.0,0.000477,20]
[340262485,1728942646507,-150.0,0.00048,14]
[340262486,1728942646520,-514.88865685,0.0004817,90]
[340262487,1728942646530,-657.71365921,0.00048207,28]
[340262488,1728942646539,-319.87755236,0.00048212,2]
[340262489,1728942646551,-1000.0,0.00048212,120]
[340262490,1728942646560,-158.0,0.0004826,120]
[340262491,1728942646570,-1000.0,0.000483,120]
[340262492,1728942646581,-200.0,0.00048301,7]
[340262493,1728942646594,-400.4718807,0.00048301,120]
[340262494,1728942646604,-698.06,0.00048301,120]
[340262495,1728942646615,-517.76,0.00048301,60]
[340262496,1728942646625,-500.0,0.00048301,21]
[340262497,1728942646637,-1500.0,0.00048302,120]
[340262498,1728942646648,-10730.3034658,0.00048302,7]
[340262499,1728942646659,-319.87755234,0.00048307,2]
[340262500,1728942646670,-12667.35937259,0.00048312,2]
[340262501,1728942646678,-12913.40631487,0.00048312,2]
[340262502,1728942646688,-76723.77483091,0.00048312,2]
[340262503,1728942646698,-319.87755234,0.00048401,2]
[340262504,1728942646707,-319.87755234,0.00048496,2]
[340262505,1728942646716,-1000.0,0.00048499,7]
[340262506,1728942646725,-1000.0,0.000485,120]
[340262507,1728942646735,-1000.0,0.00048504,7]
[340262508,1728942646744,-1000.0,0.00048505,7]
[340262509,1728942646755,-1000.0,0.00048506,7]
[340262510,1728942646764,-1000.0,0.00048516,7]
[340262511,1728942646773,-1000.0,0.00048526,7]
[340262512,1728942646783,-1000.0,0.00048528,7]
[340262513,1728942646793,-1000.0,0.00048537,7]
[340262514,1728942646804,-1000.0,0.00048544,7]
[340262515,1728942646814,-1000.0,0.00048551,7]
[340262516,1728942646824,-1000.0,0.0004856,7]
[340262517,1728942646834,-1000.0,0.00048565,7]
[340262518,1728942646846,-1000.0,0.00048566,7]
[340262519,1728942646858,-1000.0,0.00048577,7]
[340262520,1728942646867,-1125.77248966,0.00048588,7]
[340262521,1728942646877,-1000.0,0.00048589,7]
[340262522,1728942646888,-319.87755234,0.0004859,2]
[340262523,1728942646901,-7153.53564386,0.0004859,7]
[340262524,1728942646912,-43918.3528784,0.000486,120]
[340262604,1728943832583,-388.5825,0.00038356,7]
[340262606,1728943832594,-150.0,0.000403,2]
[340262608,1728943832605,-777.165,0.00041095,8]
[340262610,1728943832615,-400.0,0.00043329,30]
[340262612,1728943832627,-200.0,0.0004333,7]
[340262615,1728943832638,-500.0,0.0004333,60]
[340262617,1728943832647,-1500.0,0.0004333,120]
[340262619,1728943832656,-668.97,0.0004333,60]
[340262621,1728943832666,-500.0,0.0004333,60]
[340262623,1728943832675,-500.0,0.0004333,21]
[340262625,1728943832684,-53253.40749665,0.00043331,90]
[340262646,1728943838658,-150.0,0.000403,2]
[340262647,1728943838668,-1445.78536763,0.00043331,90]
[340262648,1728943838679,-5269.54287854,0.00043331,90]
[340262655,1728943840641,-660.72,0.00043331,90]
[340262656,1728943840653,-999.20856156,0.00043331,90]
[340262676,1728943953908,-376.4375,0.00038356,7]
[340262677,1728944002925,-752.875,0.00041095,8]
[340262678,1728944081766,-168.831854,0.00039099,2]
[340262679,1728944134758,-364.675,0.00038356,7]
[340262680,1728944308771,-168.831854,0.00040118,2]
[340262682,1728944404998,-360.875,0.00038356,7]
[340262683,1728944632224,-357.1175,0.00038356,7]
[340262689,1728944863774,-353.3975,0.00038356,7]
[340262698,1728944916677,38100.18531058,0.00021,60]
[340262701,1728944940260,-300.0,0.0004,120]
[340262742,1728945031688,-168.831854,0.00040283,2]
[340262744,1728945031701,-159.34,0.000406,2]
[340262746,1728945031713,-706.795,0.00041095,8]
[340262748,1728945031725,-500.0,0.00043,6]
[340262750,1728945031736,-558.68929609,0.00043412,2]
[340262751,1728945031746,-251.85871336,0.00043415,2]
[340262765,1728945037903,-306.83058269,0.00043415,2]
[340262766,1728945037913,-558.68929605,0.00043417,2]
[340262767,1728945037923,-558.68929605,0.0004342,2]
[340262768,1728945037935,-400.0,0.00043421,5]
[340262769,1728945037945,-558.68929605,0.00043422,2]
[340262770,1728945037955,-500.0,0.00043501,60]
[340262771,1728945037971,-641.1,0.00043501,60]
[340262772,1728945037982,-500.0,0.00043501,60]
[340262773,1728945037993,-500.0,0.00043501,21]
[340262774,1728945038004,-173.85957332,0.00043501,31]
[340262775,1728945038139,-500.0,0.00043501,31]
[340262776,1728945038150,-380.0,0.00043501,31]
[340262777,1728945038160,-500.0,0.00043501,31]
[340262778,1728945038170,-500.0,0.00043501,31]
[340262779,1728945038181,-500.0,0.00043501,31]
[340262780,1728945038190,-500.0,0.00043501,31]
[340262781,1728945038200,-500.0,0.00043501,31]
[340262782,1728945038210,-500.0,0.00043501,31]
[340262783,1728945038220,-500.0,0.00043501,31]
[340262784,1728945038232,-500.0,0.00043501,31]
[340262785,1728945038241,-348.21182063,0.00043501,31]
[340262786,1728945038252,-500.0,0.00043501,31]
[340262787,1728945038262,-500.0,0.00043501,31]
[340262788,1728945038274,-166.53,0.00043502,10]
[340262789,1728945038284,-832.68,0.00043502,10]
[340262790,1728945038293,-17036.53773005,0.00043502,45]
[340262791,1728945038303,-38619.4373077,0.00043502,6]
[340262792,1728945038315,-16917.93496501,0.00043502,6]
[340262793,1728945038330,-1860.09610009,0.00043502,6]
[340262794,1728945038340,-237.46029549,0.00043511,7]
[340262795,1728945038351,-500.0,0.00043511,30]
[340262796,1728945038363,-500.0,0.00043511,7]
[340262797,1728945038373,-500.0,0.00043511,7]
[340262798,1728945038384,-500.0,0.00043511,7]
[340262799,1728945038395,-1500.0,0.00043511,120]
[340262800,1728945038405,-150.0,0.00043512,10]
[340262801,1728945038417,-150.0,0.00043512,10]
[340262802,1728945038427,-4893.79171663,0.00043512,45]
[340262803,1728945038438,-21728.93777841,0.00043512,6]
[340262804,1728945038453,-22407.56200179,0.00043512,6]
[340262805,1728945038462,-21460.6069316,0.00043512,6]
[340262806,1728945038473,-175138.76992816,0.00043522,90]
[340262869,1728945045731,-182907.97710451,0.00043522,90]
[340262870,1728945045742,-211.18,0.000436,30]
[340262871,1728945045754,-3246.12,0.000436,30]
[340262872,1728945045765,-19251.16,0.000436,30]
[340262873,1728945045774,-7458.29,0.000436,30]
[340262874,1728945045784,-1060.1925,0.00043835,9]
[340262875,1728945045795,-500.0,0.00044104,60]
[340262876,1728945045804,-641.1,0.00044104,60]
[340262877,1728945045814,-500.0,0.00044104,60]
[340262878,1728945045824,-500.0,0.00044104,21]
[340262879,1728945045833,-1500.0,0.00044114,120]
[340262880,1728945045842,-154.34185749,0.00044404,52]
[340262881,1728945045851,-500.0,0.00044707,60]
[340262882,1728945045860,-641.1,0.00044707,60]
[340262883,1728945045871,-500.0,0.00044707,60]
[340262884,1728945045880,-500.0,0.00044707,21]
[340262885,1728945045889,-337.0946854,0.00044717,120]
[340262886,1728945045899,-150.0,0.00044882,10]
[340262887,1728945045910,-5085.83574244,0.0004499,6]
[340262888,1728945045923,-431.22673009,0.0004499,6]
[340262889,1728945045934,-2682.57586645,0.0004499,6]
[340262890,1728945045944,-12049.79005774,0.00045,120]
[340262891,1728945045953,-6291.18222796,0.00045,120]
[340262892,1728945045965,-23408.81777204,0.00045,120]
[340262893,1728945045975,-500.0,0.0004531,60]
[340262894,1728945045984,-641.1,0.0004531,60]
[340262895,1728945045994,-500.0,0.0004531,60]
[340262896,1728945046003,-500.0,0.0004531,21]
[340262897,1728945046013,-500.0,0.00045912,60]
[340262898,1728945046022,-641.1,0.00045912,60]
[340262899,1728945046031,-500.0,0.00045912,60]
[340262900,1728945046041,-500.0,0.00045912,21]
[340262901,1728945046051,-201973.81022441,0.00046,60]
[340262902,1728945046062,-500.0,0.00046515,60]
[340262903,1728945046072,-641.1,0.00046515,60]
[340262904,1728945046082,-500.0,0.00046515,60]
[340262905,1728945046093,-500.0,0.00046515,21]
[340262906,1728945046103,-1413.59,0.00046575,10]
[340262907,1728945046113,-500.0,0.00047118,120]
[340262908,1728945046123,-641.1,0.00047118,120]
[340262909,1728945046134,-500.0,0.00047118,60]
[340262910,1728945046145,-500.0,0.00047118,21]
[340262911,1728945046156,-250.4336991,0.00047123,30]
[340262912,1728945046167,-5517.06247253,0.00047711,7]
[340262913,1728945046178,-2682.57586645,0.00047711,7]
[340262914,1728945046189,-500.0,0.00047721,120]
[340262915,1728945046199,-641.1,0.00047721,120]
[340262916,1728945046210,-500.0,0.00047721,60]
[340262917,1728945046221,-500.0,0.00047721,21]
[340262918,1728945046231,-2000.0,0.00047945,120]
[340262919,1728945046241,-2130.1491149,0.00047945,120]
[340262920,1728945046251,-211.18,0.00048,30]
[340262921,1728945046261,-3246.12,0.00048,30]
[340262922,1728945046273,-19251.16,0.00048,30]
[340262923,1728945046284,-7458.29,0.00048,30]
[340262924,1728945046293,-500.0,0.00048323,120]
[340262925,1728945046303,-641.1,0.00048323,120]
[340262926,1728945046314,-500.0,0.00048323,60]
[340262927,1728945046326,-500.0,0.00048323,21]
[340262928,1728945046336,-158.0,0.0004836,120]
[340262929,1728945046346,-5000.0,0.00048458,14]
[340262930,1728945046355,-1000.0,0.000485,7]
[340262931,1728945046366,-1000.0,0.00048502,7]
[340262932,1728945046375,-5517.06247253,0.00048511,7]
[340262933,1728945046387,-2682.57586645,0.00048511,7]
[340262934,1728945046397,-1000.0,0.00048514,7]
[340262935,1728945046407,-1000.0,0.00048521,7]
[340262936,1728945046417,-1000.0,0.00048528,7]
[340262937,1728945046427,-1000.0,0.00048533,7]
[340262938,1728945046438,-1000.0,0.00048566,7]
[340262939,1728945046448,-1000.0,0.00048569,7]
[340262940,1728945046459,-1000.0,0.00048579,7]
[340262941,1728945046469,-1000.0,0.00048586,7]
[340262942,1728945046479,-150.01,0.00048589,2]
[340262943,1728945046490,-2398.10633955,0.00048589,2]
[340262944,1728945046499,-1000.0,0.00048599,120]
[340262945,1728945046508,-512.66,0.000486,120]
[340262946,1728945046518,-1000.0,0.00048615,7]
[340262947,1728945046528,-1000.0,0.00048623,7]
[340262948,1728945046537,-1000.0,0.00048625,7]
[340262949,1728945046546,-1000.0,0.00048629,7]
[340262950,1728945046555,-1000.0,0.00048645,7]
[340262951,1728945046565,-1000.0,0.00048647,7]
[340262952,1728945046576,-1000.0,0.00048679,7]
[340262953,1728945046586,-150.0,0.000487,21]
[340262954,1728945046597,-151.0,0.000487,120]
[340262955,1728945046606,-151.0,0.000487,7]
[340262956,1728945046616,-151.0,0.000487,120]
[340262957,1728945046627,-151.0,0.000487,120]
[340262958,1728945046637,-335.100869,0.000487,120]
[340262959,1728945046649,-335.100869,0.000487,120]
[340262960,1728945046660,-151.0,0.000487,2]
[340262961,1728945046669,-151.0,0.000487,120]
[340262962,1728945046679,-151.0,0.000487,120]
[340262963,1728945046690,-151.0,0.000487,120]
[340262964,1728945046703,-151.0,0.000487,120]
[340262965,1728945046713,-285.142581,0.000487,120]
[340262966,1728945046724,-285.142581,0.000487,120]
[340262967,1728945046733,-151.0,0.000487,120]
[340262968,1728945046742,-206.059169,0.000487,100]
[340262969,1728945046751,-206.059169,0.000487,100]
[340262970,1728945046760,-151.0,0.000487,120]
[340262971,1728945046769,-186.391077,0.000487,120]
[340262972,1728945046779,-151.0,0.000487,120]
[340262973,1728945046790,-151.0,0.000487,120]
[340262974,1728945046799,-186.391077,0.000487,120]
[340262975,1728945046810,-151.0,0.000487,120]
[340262976,1728945046819,-151.0,0.000487,120]
[340262977,1728945046829,-177.712726,0.000487,2]
[340262978,1728945046838,-1000.0,0.00048705,7]
[340262979,1728945046848,-1000.0,0.00048751,7]
[340262980,1728945046857,-151.0,0.0004879,120]
[340262981,1728945046867,-151.0,0.0004879,120]
[340262982,1728945046876,-151.0,0.0004879,120]
[340262983,1728945046885,-151.0,0.0004879,120]
[340262984,1728945046894,-222.569948,0.0004879,120]
[340262985,1728945046903,-222.569948,0.0004879,120]
[340262986,1728945046912,-230.043888,0.0004879,120]
[340262987,1728945046921,-230.043888,0.0004879,120]
[340262988,1728945046930,-151.0,0.0004879,120]
[340262989,1728945046939,-11034.1249451,0.0004879,7]
[340262990,1728945046948,-5365.1517329,0.0004879,7]
[340262991,1728945046958,-254.676295,0.0004879,120]
[340262992,1728945046971,-151.0,0.0004879,120]
[340262993,1728945046983,-254.676295,0.0004879,120]
[340262994,1728945046992,-151.0,0.0004879,120]
[340262995,1728945047002,-641.516532,0.0004879,120]
[340262996,1728945047013,-641.516532,0.0004879,120]
[340262997,1728945047023,-210.542,0.0004879,120]
[340262998,1728945047033,-151.0,0.0004879,60]
[340262999,1728945047045,-151.0,0.0004879,60]
[340263000,1728945047056,-210.542,0.0004879,120]
[340263001,1728945047066,-151.0,0.0004879,120]
[340263002,1728945047078,-151.0,0.0004879,120]
[340263003,1728945047088,-151.0,0.0004879,120]
[340263004,1728945047098,-151.0,0.0004879,120]
[340263005,1728945047110,-151.0,0.0004879,120]
[340263006,1728945047120,-151.0,0.0004879,120]
[340263007,1728945047131,-151.0,0.0004879,120]
[340263008,1728945047143,-186.156947,0.0004879,120]
[340263009,1728945047153,-151.0,0.0004879,120]
[340263010,1728945047162,-186.156947,0.0004879,120]
[340263011,1728945047172,-3356.69128523,0.000488,120]
[340263012,1728945047185,-500.0,0.000488,120]
[340263148,1728945334511,-316.585,0.00038356,7]
[340263418,1728945416943,-205.91465752,0.00038256,2]
[340263419,1728945461001,187.5,0.00038745,2]
[340263420,1728945461212,187.5,0.00038851,2]
[340263421,1728945461464,187.5,0.00038958,2]
[340263422,1728945461692,187.5,0.00039064,2]
[340263423,1728945462041,187.5,0.0003917,2]
[340263424,1728945462146,187.5,0.00039276,2]
[340263425,1728945462388,187.5,0.00039383,2]
[340263426,1728945462602,187.5,0.00039489,2]
[340263427,1728945462818,187.5,0.00039595,2]
[340263428,1728945463240,187.5,0.00039702,2]
[340263429,1728945463491,187.5,0.00039808,2]
[340263430,1728945463740,187.5,0.00039914,2]
[340263432,1728945583744,313.2875,0.00038356,7]
[340263433,1728945800589,300.0,0.0004,2]
[340263434,1728945848412,310.0225,0.00038356,7]
[340263435,1728945854236,5000.0,0.0004,2]
[340263436,1728945869503,1652.39266777,0.0004,2]
[340263437,1728945876702,174.29733223,0.00038794,2]
[340263438,1728945876871,5984.70266777,0.00038794,2]
[340263450,1728946022103,200.0,0.00025,7]
[340263460,1728946069069,306.795,0.00038356,7]
[340263461,1728946088537,3000.0,0.00038622,2]
[340263462,1728946119012,-166.666666,0.00039238,2]
[340263463,1728946120611,-166.666666,0.00039493,2]
[340263467,1728946199047,185.7365753,0.00036876,30]
[340263495,1728946231789,-166.666666,0.00039749,2]
[340263497,1728946231800,-166.666666,0.00040005,2]
[340263499,1728946231813,-166.666666,0.0004026,2]
[340263500,1728946231823,-166.666666,0.00040516,2]
[340263502,1728946231833,-166.666666,0.00040771,2]
[340263503,1728946231843,-166.666666,0.00041027,2]